bitfinex-derivatives/quotes_ETHF0:USTF0_20250212
["timestamp","ask_amount","ask_price","bid_price","bid_amount"]
[1739356947456,3.4255052,2628.8,2628.5,0.18960928]
[1739356952566,0.6064,2628.6,2628.5,0.18960928]
[1739356952960,3.8142,2628.6,2628.5,0.18960928]
[1739356953368,4.17113482,2628.6,2628.5,0.18960928]
[1739356953672,0.96333482,2628.6,2628.5,0.18960928]
[1739356955172,0.35693482,2628.6,2628.5,0.18960928]
[1739356955463,0.5724,2628.7,2628.5,0.18960928]
[1739356957768,3.4255052,2628.8,2628.5,3.39740928]
[1739356957972,0.5727,2628.9,2628.5,4.15823928]
[1739356958271,0.5727,2628.9,2628.5,4.15824928]
[1739356958768,0.5727,2628.9,2628.5,0.18960928]
[1739356959172,3.4255052,2628.8,2628.5,0.18960928]
[1739356961374,3.4255052,2628.8,2628.5,0.95045928]
[1739356961772,3.4255052,2628.8,2628.5,0.18960928]
[1739356962270,3.4255052,2628.8,2628.5,0.95044928]
[1739356962471,3.4255052,2628.8,2628.5,0.18960928]
[1739356963072,3.2078,2628.7,2628.5,0.18960928]
[1739356963273,0.5801,2628.6,2628.5,0.18960928]
[1739356963471,1.1648,2628.6,2628.5,0.18960928]
[1739356965771,3.4255052,2628.4,2627.4,3.759]
[1739356965971,3.2078,2627.8,2627.4,1.1422]
[1739356966270,0.5863,2627.7,2627.4,1.1422]
[1739356968281,2.2623,2627.7,2627.4,1.1422]
[1739356968976,2.8437,2627.7,2627.4,1.1422]
[1739356975079,0.5863,2627.7,2627.5,3.2078]
[1739356975278,0.00570234,2627.8,2627.6,0.76111]
[1739356975682,0.00570234,2627.8,2627.5,3.2078]
[1739356977185,0.00570234,2627.8,2627.5,3.96893]
[1739356977375,0.00570234,2627.8,2627.5,3.2078]
[1739356977686,0.00570234,2627.8,2627.7,0.76108]
[1739356977884,0.00570234,2627.8,2627.6,1.35059]
[1739356978287,0.00570234,2627.8,2627.6,0.5895]
[1739356978788,0.00570234,2627.8,2627.5,3.2078]
[1739356978988,0.00570234,2627.8,2627.5,3.96893]
[1739356980083,0.00570234,2627.8,2627.5,3.2078]
[1739356980289,0.00570234,2627.8,2627.5,3.96892]
[1739356980585,0.00570234,2627.8,2627.5,3.2078]
[1739356980788,0.00570234,2627.8,2627.5,3.96893]
[1739356981086,0.00570234,2627.8,2627.6,0.76111]
[1739356981488,0.00570234,2627.8,2627.5,3.2078]
[1739356982290,0.00570234,2627.8,2627.7,0.76108]
[1739356983385,0.00570234,2627.8,2627.6,0.7611]
[1739356984188,0.00570234,2627.8,2627.5,3.2078]
[1739356984493,0.00570234,2627.8,2627.7,0.76108]
[1739356990285,0.00570234,2627.8,2627.7,6.76108]
[1739356990485,0.35693119,2628.4,2627.7,6.76108]
[1739356990486,0.35693119,2628.4,2628.0,3.4255052]
[1739356990790,0.35693119,2628.6,2628.2,3.2078]
[1739356990990,0.35693119,2628.6,2628.3,40.8]
[1739356991195,1.48683119,2628.9,2628.2,3.2078]
[1739356991592,3.43120754,2628.8,2628.3,40.8]
[1739356991789,0.5613,2628.7,2628.3,40.8]
[1739356992994,0.5613,2628.7,2628.2,3.2078]
[1739356993388,0.5613,2628.7,2628.5,0.18985365]
[1739356997489,4.12602009,2628.7,2628.5,0.18985365]
[1739356997700,10.12602009,2628.7,2627.9,5.8246]
[1739356997999,3.4255052,2628.3,2627.9,5.8246]
[1739356998299,3.78242529,2628.6,2628.2,0.18641118]
[1739356998497,4.98372529,2628.6,2628.2,0.18641118]
[1739356998900,1.55822009,2628.6,2628.2,3.39421118]
[1739356999193,1.55822009,2628.6,2628.3,0.5983]
[1739356999395,0.95762009,2628.6,2628.3,0.5983]
[1739356999597,0.6007,2628.6,2628.4,0.5788]
[1739357002803,4.6086052,2628.6,2628.2,3.39421118]
[1739357003099,3.4255052,2628.3,2628.2,0.18641118]
[1739357003400,3.78239538,2628.3,2628.2,0.18641118]
[1739357004598,4.273368,2628.3,2628.2,0.18641118]
[1739357004897,3.78239538,2628.3,2628.2,0.18641118]
[1739357009606,3.78239538,2628.3,2627.6,0.6037]
[1739357009798,3.2078,2628.1,2627.6,0.6037]
[1739357010000,4.0078052,2628.0,2627.6,0.6037]
[1739357010502,4.36469538,2628.0,2627.6,0.6037]
[1739357011206,0.93919018,2628.0,2627.6,0.6037]
[1739357011603,0.5823,2628.0,2627.6,0.6037]
[1739357012702,3.56469018,2628.1,2627.6,0.6037]
[1739357012907,5.22969018,2628.1,2627.6,0.6037]
[1739357013108,4.8728,2628.1,2627.6,0.6037]
[1739357013910,5.22978278,2628.1,2627.6,0.6037]
[1739357014604,0.35698278,2628.1,2627.8,3.2078]
[1739357014805,3.4255052,2628.5,2627.9,0.761]
[1739357015001,3.4255052,2628.5,2627.9,1.313]
[1739357015205,3.4255052,2628.5,2627.9,0.552]
[1739357015910,3.78243372,2628.5,2627.9,0.552]
[1739357018211,5.45943372,2628.5,2627.9,0.552]
[1739357018415,5.45943372,2628.5,2628.0,0.18916706]
[1739357019309,3.2078,2628.3,2628.0,0.18916706]
[1739357019510,4.6269052,2628.2,2628.0,0.18916706]
[1739357019710,5.2045052,2628.2,2628.0,0.18916706]
[1739357019911,5.56143372,2628.2,2628.0,0.18916706]
[1739357020215,0.35692852,2628.1,2628.0,0.18916706]
[1739357021613,2.11272852,2628.1,2628.0,0.18916706]
[1739357030121,5.32052852,2628.1,2628.0,0.18916706]
[1739357030324,8.29952852,2628.1,2628.0,0.18916706]
[1739357031823,3.56472852,2628.1,2628.0,0.18916706]
[1739357033316,0.35692852,2628.1,2628.0,0.18916706]
[1739357033716,2.03592852,2628.4,2628.0,0.18916706]
[1739357033916,3.2078,2628.2,2628.0,0.18916706]
[1739357034228,6.6333052,2628.2,2628.0,0.18916706]
[1739357034623,0.35692852,2628.1,2628.0,0.18916706]
[1739357034819,0.92522852,2628.1,2628.0,0.18916706]
[1739357038527,0.35692852,2628.1,2628.0,0.18916706]
[1739357039323,4.8848,2628.3,2628.0,0.18916706]
[1739357040523,0.35692852,2628.4,2628.0,0.18916706]
[1739357040830,0.35692852,2628.4,2628.1,1.2002]
[1739357041122,3.4255052,2628.5,2628.1,1.2002]
[1739357042923,0.35692852,2628.6,2628.1,1.2002]
[1739357043115,6.63900754,2628.8,2628.1,1.2002]
[1739357043116,3.2078,2628.4,2628.1,1.2002]
[1739357043626,0.76097,2628.1,2628.0,0.18916706]
[1739357043917,3.2078,2628.1,2628.0,0.18916706]
[1739357044125,4.75062852,2628.1,2628.0,0.18916706]
[1739357044722,3.56472852,2628.1,2628.0,0.18916706]
[1739357046327,1.684,2628.2,2628.1,1.1187]
[1739357047822,0.35696307,2628.3,2628.1,1.7119]
[1739357048023,6.6435,2628.7,2628.1,1.7119]
[1739357048421,0.35691715,2628.6,2628.1,1.7119]
[1739357048819,3.4255052,2628.5,2628.1,1.7119]
[1739357050228,0.35691715,2628.6,2628.2,3.2078]
[1739357050931,3.43120754,2628.8,2628.2,3.2078]
[1739357055833,3.7758,2628.7,2628.1,1.7119]
[1739357056334,1.1359,2628.6,2628.1,1.7119]
[1739357057226,1.49281715,2628.6,2628.1,1.7119]
[1739357058431,1.49281715,2628.6,2628.1,1.1187]
[1739357058432,3.4255052,2628.5,2628.1,1.1187]
[1739357062931,3.2078,2628.4,2628.1,1.1187]
[1739357063136,3.2078,2628.4,2628.1,0.5699]
[1739357063437,0.5765,2628.3,2628.1,0.5699]
[1739357065442,0.35691715,2628.4,2628.1,0.5699]
[1739357065643,0.35691715,2628.4,2628.2,3.96873]
[1739357065941,6.70441715,2628.9,2628.3,41.3889]
[1739357066143,0.36261949,2628.8,2628.4,0.5764]
[1739357066344,2.04061949,2628.8,2628.5,3.2078]
[1739357066644,2.04061949,2628.8,2628.5,3.8083]
[1739357069847,1.68370234,2628.8,2628.5,3.8083]
[1739357070744,0.00570234,2628.8,2628.5,3.8083]
[1739357071144,0.00570234,2628.8,2628.6,3.4255052]
[1739357071646,0.00570234,2628.8,2628.6,4.1863252]
[1739357071846,0.00570234,2628.8,2628.6,3.4255052]
[1739357073046,0.35682448,2629.2,2628.6,3.4255052]
[1739357073252,0.35682448,2629.2,2629.1,3.2078]
[1739357073643,1.7434,2629.5,2629.1,3.2078]
[1739357073847,1.7434,2629.5,2629.4,3.2078]
[1739357074050,0.585,2629.5,2629.4,3.2078]
[1739357074248,0.00570234,2629.6,2629.4,3.2078]
[1739357074742,0.00570234,2629.6,2629.5,0.5594]
[1739357076148,0.49856826,2629.7,2629.5,1.7144]
[1739357076346,0.49856826,2629.7,2629.5,5.9004552]
[1739357076546,0.11788418,2629.7,2629.5,5.9004452]
[1739357076741,4.0096052,2630.3,2629.5,5.32623102]
[1739357076951,0.5841,2630.3,2629.9,3.2078]
[1739357078850,0.5841,2630.3,2630.0,0.5757]
[1739357083849,3.4255052,2630.1,2629.9,3.2078]
[1739357084251,0.571,2630.0,2629.9,3.2078]
[1739357085765,0.571,2630.0,2629.5,0.18632582]
[1739357086064,3.4255052,2629.7,2629.5,0.18632582]
[1739357086365,0.5525,2629.6,2629.5,0.18632582]
[1739357090262,3.7603,2629.6,2629.5,0.18632582]
[1739357090663,4.11712035,2629.6,2629.5,0.18632582]
[1739357092471,4.11712035,2629.6,2629.0,0.00570234]
[1739357092660,3.4255052,2629.3,2629.0,0.00570234]
[1739357092860,0.5677,2629.2,2629.0,0.00570234]
[1739357093064,0.5869,2629.1,2629.0,0.00570234]
[1739357094267,0.5869,2629.1,2626.9,3.2078]
[1739357094268,0.76094,2628.2,2626.9,3.2078]
[1739357094467,3.4255052,2627.0,2626.6,3.39822832]
[1739357094672,3.4255052,2626.7,2626.6,0.19042832]
[1739357095675,3.4255052,2626.8,2626.4,0.00570234]
[1739357095970,6.6333052,2626.5,2626.4,0.00570234]
[1739357096570,6.6333052,2626.5,2625.6,40.8]
[1739357096764,3.4255052,2625.8,2625.6,40.8]
[1739357097974,3.2078,2625.9,2625.6,40.8]
[1739357098967,2.82671551,2625.9,2625.6,40.8]
[1739357099170,2.44563102,2625.9,2625.6,40.8]
[1739357099367,2.06454653,2625.9,2625.6,40.8]
[1739357099674,1.78,2626.0,2625.6,40.8]
[1739357104979,3.4255052,2625.8,2625.6,40.8]
[1739357105275,3.04442071,2625.8,2625.6,44.0078]
[1739357105471,1.78,2626.0,2625.6,44.0078]
[1739357105873,3.4255052,2626.1,2625.6,44.0078]
[1739357106077,5.1925052,2626.5,2625.9,3.2078]
[1739357106376,5.1925052,2626.5,2625.9,3.7568]
[1739357106569,5.1925052,2626.5,2626.0,40.8]
[1739357107175,5.1925052,2626.5,2626.1,0.5656]
[1739357107370,3.2078,2626.6,2626.2,3.2078]
[1739357109875,2.82672858,2626.6,2626.2,3.2078]
[1739357110077,3.4255052,2626.7,2626.5,3.2078]
[1739357111583,3.4255052,2626.7,2626.5,3.39387717]
[1739357113079,3.21350234,2626.9,2626.5,3.39387717]
[1739357113283,3.4255052,2626.8,2626.5,3.39387717]
[1739357113989,0.3081952,2627.6,2626.5,6.81938237]
[1739357113990,3.2078,2627.3,2626.5,6.81938237]
[1739357114189,3.2078,2627.3,2626.9,3.2078]
[1739357115086,6.6333052,2627.3,2626.9,3.2078]
[1739357116889,0.00570234,2627.4,2627.2,3.2078]
[1739357117283,0.00570234,2627.4,2627.3,40.8]
[1739357120187,3.2078,2628.1,2627.4,0.76115]
[1739357120388,3.2078,2628.1,2627.7,3.2078]
[1739357122693,3.2078,2628.1,2627.8,40.8]
[1739357122886,3.2078,2628.1,2627.7,3.2078]
[1739357123286,4.00900754,2628.2,2627.7,40.8]
[1739357123487,4.00900754,2628.2,2627.7,44.0078]
[1739357123695,4.00900754,2628.2,2627.7,3.2078]
[1739357123889,4.00900754,2628.2,2628.0,0.19119231]
[1739357125796,4.00900754,2628.2,2627.4,3.2078]
[1739357125986,3.4255052,2627.8,2627.4,3.2078]
[1739357126193,0.5497,2627.7,2627.4,3.2078]
[1739357126592,3.4255052,2627.5,2627.1,3.2078]
[1739357127204,3.4255052,2627.2,2626.8,0.00570234]
[1739357127493,3.4255052,2626.9,2626.8,0.00570234]
[1739357127702,3.4255052,2626.9,2626.5,0.18607717]
[1739357127900,6.6333052,2626.6,2626.5,0.18607717]
[1739357128401,6.6333052,2626.6,2625.9,40.8]
[1739357128596,3.4255052,2626.5,2625.9,40.8]
[1739357128798,1.76,2626.4,2626.0,0.00570234]
[1739357131495,2.3199,2626.4,2626.0,0.00570234]
[1739357132697,3.98378123,2626.3,2626.0,0.00570234]
[1739357133202,7.19158123,2626.3,2626.0,0.00570234]
[1739357134212,10.17058123,2626.3,2625.9,40.8]
[1739357134397,7.19158123,2626.0,2625.1,3.40132712]
[1739357135004,7.19158123,2626.0,2625.2,40.8]
[1739357135509,7.19158123,2626.0,2625.3,0.00570234]
[1739357137493,3.98378123,2625.6,2625.3,0.00570234]
[1739357137694,0.5557,2625.5,2625.3,0.00570234]
[1739357139196,0.5557,2625.5,2625.2,40.8]
[1739357139405,3.98378123,2625.3,2625.1,3.40132712]
[1739357139593,0.5579,2625.2,2625.1,3.40132712]
[1739357141705,0.5579,2625.2,2625.1,0.19352712]
[1739357142704,0.5579,2625.2,2624.9,0.00571331]
[1739357143498,3.98378123,2625.0,2624.9,0.00571331]
[1739357145005,3.98378123,2625.0,2624.9,0.20053062]
[1739357148406,3.98378123,2625.0,2624.7,3.2078]
[1739357149012,3.98378123,2625.0,2624.9,0.18704215]
[1739357149610,3.11645013,2625.0,2624.9,0.18704215]
[1739357150204,3.11645013,2625.0,2624.7,3.21351331]
[1739357154808,0.56654251,2624.9,2624.7,3.21351331]
[1739357156105,3.77434251,2624.9,2624.7,0.00571331]
[1739357160417,9.77434251,2624.9,2623.6,3.2078]
[1739357160615,3.11645013,2623.9,2623.6,3.2078]
[1739357160814,4.84645013,2623.9,2623.6,3.2078]
[1739357161411,1.73,2624.0,2623.6,3.2078]
[1739357162314,3.11645013,2624.2,2623.9,3.2078]
[1739357162519,3.11645013,2624.2,2624.0,1.1565]
[1739357162710,1.728,2624.4,2624.0,1.1565]
[1739357163223,3.11645013,2624.5,2624.0,1.1565]
[1739357163424,1.729,2624.4,2624.0,1.1565]
[1739357164022,1.729,2624.4,2624.2,3.2078]
[1739357164811,3.11645013,2624.5,2624.2,3.2078]
[1739357166026,1.732,2624.4,2624.2,3.2078]
[1739357166318,2.3246,2624.4,2624.2,3.2078]
[1739357166913,0.5588,2624.3,2624.2,3.2078]
[1739357168916,0.5588,2624.3,2623.7,3.2078]
[1739357169119,3.11645013,2623.9,2623.7,3.2078]
[1739357169320,1.73,2623.8,2623.7,3.2078]
[1739357170114,1.73,2623.8,2623.5,0.19636572]
[1739357170312,3.11645013,2623.6,2623.5,0.19636572]
[1739357172913,3.11645013,2623.6,2623.5,0.00381616]
[1739357173314,3.11645013,2623.6,2622.8,3.2078]
[1739357173518,6.23290026,2623.0,2622.5,3.2078]
[1739357173715,3.11645013,2622.6,2622.2,4.356]
[1739357173911,3.11645013,2622.3,2622.2,4.356]
[1739357174321,3.11645013,2622.3,2622.2,45.156]
[1739357174524,3.11645013,2622.3,2622.2,3.7774]
[1739357174822,4.85445013,2622.3,2622.2,3.2078]
[1739357175619,3.11645013,2622.6,2622.2,4.3465]
[1739357176227,3.11645013,2622.9,2622.2,4.3465]
[1739357176420,3.11645013,2623.2,2622.8,3.2078]
[1739357176727,3.11645013,2623.2,2622.9,1.1387]
[1739357177024,3.11645013,2623.2,2622.9,1.7189]
[1739357180421,3.11645013,2623.2,2622.9,1.1387]
[1739357180724,1.739,2623.1,2622.9,0.5496]
[1739357180927,1.739,2623.1,2622.6,40.8]
[1739357181224,3.11645013,2622.9,2622.6,0.5989]
[1739357181919,3.11645013,2622.9,2622.2,4.3489]
[1739357182125,3.11645013,2622.5,2622.2,4.9478]
[1739357182525,3.11645013,2622.5,2622.2,4.3616]
[1739357182823,4.85545013,2622.5,2622.2,4.3616]
[1739357183822,4.85545013,2622.5,2622.2,4.9491]
[1739357184226,4.85545013,2622.5,2622.2,45.7491]
[1739357184420,1.739,2622.5,2622.2,45.7491]
[1739357184632,3.11645013,2622.8,2622.2,46.51176]
[1739357184930,1.739,2623.0,2622.6,3.2078]
[1739357185234,3.11645013,2623.1,2622.6,3.2078]
[1739357185423,3.11645013,2623.4,2622.9,3.2078]
[1739357185632,3.11645013,2623.4,2623.2,3.2078]
[1739357186126,1.741,2623.6,2623.2,3.2078]
[1739357186321,3.11645013,2623.7,2623.2,3.2078]
[1739357188825,3.11645013,2623.4,2623.2,3.2078]
[1739357189223,3.11645013,2623.7,2623.2,3.2078]
[1739357189428,3.11645013,2623.7,2623.3,1.1438]
[1739357189628,3.11645013,2623.7,2623.5,3.2078]
[1739357189827,0.00571331,2623.8,2623.5,3.2078]
[1739357190331,0.00571331,2623.8,2623.6,40.8]
[1739357191235,3.11645013,2623.7,2623.5,3.2078]
[1739357191527,3.11645013,2623.7,2623.6,0.19388684]
[1739357194932,0.00571331,2623.8,2623.6,0.19388684]
[1739357195933,3.67965013,2624.3,2623.7,0.76223]
[1739357196132,3.11645013,2624.3,2623.9,3.2078]
[1739357196429,4.85845013,2624.6,2624.0,1.7097]
[1739357197235,4.85845013,2624.6,2624.0,1.71541331]
[1739357197236,3.12216344,2624.6,2624.0,1.71541331]
[1739357197729,3.99535788,2624.6,2624.0,1.71541331]
[1739357198128,3.98964457,2624.3,2624.0,0.00571331]
[1739357198338,0.6071,2624.2,2624.0,0.00571331]
[1739357201329,1.74,2624.1,2624.0,0.00571331]
[1739357201732,4.9478,2624.1,2624.0,0.00571331]
[1739357202937,4.9458,2624.1,2624.0,0.00571331]
[1739357204130,1.738,2624.1,2624.0,0.00571331]
[1739357205136,2.3441,2624.2,2624.0,0.00571331]
[1739357205831,0.6071,2624.2,2624.0,0.00571331]
[1739357207253,3.8149,2624.2,2624.0,0.00571331]
[1739357207628,5.5509,2624.2,2624.0,0.00571331]
[1739357208939,3.8149,2624.2,2624.0,0.00571331]
[1739357209137,5.5509,2624.2,2624.0,0.00571331]
[1739357210429,3.8149,2624.2,2624.0,0.00571331]
[1739357210638,5.5489,2624.2,2624.0,0.00571331]
[1739357211847,2.3411,2624.2,2624.0,0.00571331]
[1739357212845,0.6071,2624.2,2624.0,0.00571331]
[1739357218443,0.5885,2624.3,2624.0,0.56651331]
[1739357220348,0.35745789,2624.4,2624.0,0.56651331]
[1739357220644,0.35745789,2624.4,2624.3,3.2078]
[1739357221048,3.11717605,2624.4,2624.0,4.36231331]
[1739357221244,3.69407605,2624.4,2624.0,4.36231331]
[1739357221646,3.69407605,2624.4,2624.0,3.21351331]
[1739357221851,4.05153394,2624.4,2624.0,3.21351331]
[1739357222145,3.11717605,2624.1,2624.0,3.21351331]
[1739357222443,4.84917605,2624.1,2624.0,3.21351331]
[1739357225649,8.05697605,2624.1,2624.0,0.00571331]
[1739357225946,8.41443394,2624.1,2624.0,0.00571331]
[1739357227051,8.05697605,2624.1,2624.0,0.00571331]
[1739357228855,8.41448121,2624.1,2624.0,0.00571331]
[1739357230352,6.68248121,2624.1,2624.0,0.00571331]
[1739357230651,8.05397605,2624.1,2624.0,0.00571331]
[1739357231651,3.47467973,2624.1,2624.0,0.00571331]
[1739357232250,3.11717605,2624.1,2624.0,0.00571331]
[1739357233758,4.05157973,2624.4,2624.0,3.21351331]
[1739357234155,3.69407605,2624.4,2624.0,3.21351331]
[1739357234751,4.05157973,2624.4,2624.0,3.21351331]
[1739357235056,3.47467973,2624.4,2624.0,3.21351331]
[1739357235354,0.35750368,2624.4,2624.0,3.21351331]
[1739357235548,0.35750368,2624.4,2624.3,3.2078]
[1739357235854,0.35750368,2624.4,2624.0,0.00571331]
[1739357236055,3.11717605,2624.4,2624.1,40.8]
[1739357236357,0.5678,2624.3,2624.0,3.21351331]
[1739357236758,3.11717605,2624.1,2624.0,0.00571331]
[1739357237753,4.84717605,2624.1,2624.0,0.00571331]
[1739357238164,5.20468873,2624.1,2624.0,0.00571331]
[1739357239453,2.08751268,2624.1,2624.0,0.00571331]
[1739357239663,1.73,2624.1,2624.0,0.00571331]
[1739357240357,1.1506,2624.3,2624.0,0.00571331]
[1739357240755,4.84717605,2624.4,2624.0,0.00571331]
[1739357240951,3.11717605,2624.4,2624.0,3.21351331]
[1739357241464,0.35749403,2624.5,2624.0,3.21351331]
[1739357242062,3.57100734,2624.6,2624.0,3.21351331]
[1739357248068,0.36320734,2624.6,2624.0,3.21351331]
[1739357248264,0.36320734,2624.6,2624.3,3.2078]
[1739357248472,0.36320734,2624.6,2624.3,3.96986]
[1739357248770,0.00571331,2624.6,2624.4,0.5578]
[1739357248959,0.00571331,2624.6,2624.5,0.5932]
[1739357249769,0.00571331,2624.6,2624.5,41.3932]
[1739357254572,0.35749403,2625.2,2624.5,47.3932]
[1739357254768,0.35749403,2625.2,2624.9,3.2078]
[1739357255064,0.35749403,2625.2,2625.0,0.5857]
[1739357255265,1.1762,2625.4,2625.1,0.6021]
[1739357255569,1.1762,2625.4,2625.2,40.8]
[1739357255770,0.35749403,2625.5,2625.2,40.8]
[1739357255771,0.36320734,2625.5,2625.2,40.8]
[1739357256165,0.00571331,2625.5,2625.2,40.8]
[1739357257459,0.00571331,2625.5,2625.1,0.19051684]
[1739357259170,3.11717605,2625.3,2625.1,0.19051684]
[1739357259371,1.1853,2625.2,2625.1,0.19051684]
[1739357259566,1.738,2625.2,2625.1,0.19051684]
[1739357259968,1.738,2625.2,2625.1,0.16768554]
[1739357259969,4.9458,2625.2,2625.1,0.16768554]
[1739357260373,5.30329403,2625.2,2625.1,0.09496861]
[1739357260574,5.30329403,2625.2,2624.4,3.7978]
[1739357260769,3.11717605,2624.9,2624.4,3.7978]
[1739357260979,3.11717605,2624.9,2624.5,40.8]
[1739357261368,3.11717605,2624.6,2624.4,3.2078]
[1739357261577,0.5694,2624.5,2624.4,3.2078]
[1739357262764,0.5694,2624.5,2624.0,3.21351331]
[1739357262765,1.1766,2624.5,2624.0,3.21351331]
[1739357263869,0.5508,2624.4,2624.0,3.21351331]
[1739357264581,0.5694,2624.5,2624.0,6.33068936]
[1739357264876,2.07748804,2624.6,2624.0,7.09283936]
[1739357265179,3.2078,2624.7,2624.0,7.09282936]
[1739357265486,0.35748804,2624.8,2624.5,3.2078]
[1739357265681,0.35748804,2624.8,2624.6,0.5514]
[1739357265879,0.35747202,2625.2,2624.7,0.76195]
[1739357266080,0.35747202,2625.2,2624.9,3.2078]
[1739357266483,0.558,2625.3,2624.9,3.2078]
[1739357268382,0.558,2625.3,2625.0,40.8]
[1739357268638,3.11717605,2625.2,2625.0,40.8]
[1739357269478,3.11717605,2625.2,2624.6,3.2078]
[1739357269691,3.11717605,2624.8,2624.3,3.2078]
[1739357269978,0.5768,2624.7,2624.3,44.0078]
[1739357270188,1.1796,2624.7,2624.3,44.0078]
[1739357272576,1.7551,2624.7,2624.3,44.0078]
[1739357273180,3.11717605,2624.5,2624.3,44.0078]
[1739357273382,1.7551,2624.7,2624.3,44.0078]
[1739357274381,3.11717605,2624.4,2624.0,3.21351331]
[1739357274685,3.2078,2624.3,2624.0,0.00571331]
[1739357274878,3.2078,2624.3,2624.1,40.8]
[1739357275080,0.5844,2624.2,2624.1,40.8]
[1739357275579,0.5844,2624.2,2624.0,0.00571331]
[1739357275780,0.604,2624.1,2624.0,0.00571331]
[1739357275979,0.604,2624.1,2624.0,40.80571331]
[1739357277279,0.604,2624.1,2624.0,0.00571331]
[1739357277680,3.11717605,2624.4,2624.0,0.00571331]
[1739357277887,1.716,2624.4,2624.1,40.8]
[1739357278081,2.9044,2624.6,2624.1,40.8]
[1739357278278,2.9044,2624.6,2624.2,1.1143]
[1739357278473,3.11717605,2624.5,2624.1,40.8]
[1739357279187,2.9044,2624.6,2624.1,40.8]
[1739357279883,2.9044,2624.6,2624.3,3.2078]
[1739357280084,2.9044,2624.6,2624.1,40.8]
[1739357281578,1.1884,2624.6,2624.1,40.8]
[1739357281891,2.9064,2624.6,2624.1,40.8]
[1739357282093,2.3024,2624.6,2624.1,41.3855]
[1739357282280,4.83617605,2624.8,2624.3,3.2078]
[1739357282476,3.11717605,2624.8,2624.4,0.6087]
[1739357282787,1.719,2624.8,2624.4,1.1639]
[1739357284595,0.5624,2625.0,2624.4,1.1639]
[1739357286391,3.72407605,2625.1,2624.4,1.1639]
[1739357286589,3.72407605,2625.1,2624.6,3.2078]
[1739357286787,3.11717605,2625.1,2624.7,0.6099]
[1739357287995,3.11717605,2625.1,2624.6,3.2078]
[1739357290199,1.714,2625.2,2625.0,0.19109372]
[1739357290398,5.98027605,2625.4,2625.0,0.19109372]
[1739357290592,4.26927605,2625.4,2625.0,0.19109372]
[1739357292998,3.11717605,2625.1,2625.0,0.19109372]
[1739357294687,3.2078,2625.2,2625.0,0.19109372]
[1739357295192,3.11717605,2625.1,2625.0,0.19109372]
[1739357300702,3.11717605,2625.1,2624.2,0.76209]
[1739357300703,12.2343521,2625.1,2624.1,40.8]
[1739357300908,12.2343521,2625.1,2623.6,0.19388684]
[1739357300909,6.32497605,2624.2,2623.6,0.19388684]
[1739357301201,0.76201,2624.6,2623.6,0.19388684]
[1739357301202,6.32497605,2623.9,2623.6,0.19388684]
[1739357301507,1.728,2623.8,2623.6,0.19388684]
[1739357302899,6.32497605,2623.9,2623.4,0.00571331]
[1739357303201,0.00571331,2624.0,2623.4,0.00571331]
[1739357303202,3.11717605,2623.6,2623.4,0.00571331]
[1739357305301,3.11717605,2623.6,2623.5,3.2078]
[1739357306896,5.42147605,2623.9,2623.5,3.2078]
[1739357307101,1.72871331,2624.0,2623.5,3.2078]
[1739357307306,1.72871331,2624.0,2623.8,3.2078]
[1739357307503,0.00571331,2624.0,2623.8,3.2078]
[1739357307700,0.00571331,2624.0,2623.9,0.5741]
[1739357308100,0.00571331,2624.0,2623.9,41.3741]
[1739357308308,3.11717605,2624.5,2623.9,47.3741]
[1739357308495,3.11717605,2624.5,2624.1,3.2078]
[1739357308996,3.11717605,2624.5,2624.2,0.5918]
[1739357309209,3.11717605,2624.8,2624.4,3.2078]
[1739357309503,0.00571331,2624.6,2624.5,0.5562]
[1739357312006,9.21351331,2624.6,2623.3,3.2078]
[1739357312207,3.11717605,2623.6,2623.0,3.2078]
[1739357312404,3.11717605,2623.6,2623.1,3.2078]
[1739357312709,0.5549,2623.5,2622.6,3.2078]
[1739357312904,3.11717605,2623.2,2622.6,3.2078]
[1739357313099,3.11717605,2623.2,2622.7,40.8]
[1739357313307,3.69237605,2623.2,2622.7,40.8]
[1739357313808,3.69808936,2623.2,2622.7,40.80571331]
[1739357315412,1.761,2623.1,2622.7,40.80571331]
[1739357317114,3.11717605,2622.8,2622.7,40.80571331]
[1739357317508,4.87817605,2623.1,2622.7,46.80571331]
[1739357317802,3.11717605,2623.1,2623.0,3.2078]
[1739357318715,0.00571331,2623.2,2623.0,3.2078]
[1739357319207,3.11717605,2623.1,2623.0,3.2078]
[1739357321011,3.11717605,2623.1,2622.9,0.5972]
[1739357321218,3.11717605,2623.1,2622.8,3.7747]
[1739357321411,3.67427605,2623.1,2622.8,3.7747]
[1739357321821,3.67427605,2623.1,2622.7,0.00571331]
[1739357322027,3.11717605,2622.8,2622.7,0.00571331]
[1739357325019,6.89197605,2623.0,2622.7,0.00571331]
[1739357325222,3.11717605,2623.0,2622.8,3.2078]
[1739357325616,3.11717605,2623.0,2622.8,3.7714]
[1739357325816,3.11717605,2623.0,2622.8,0.5636]
[1739357330084,3.11717605,2623.0,2622.9,40.8]
[1739357330220,0.00571331,2623.2,2622.9,40.8]
[1739357330424,0.00571331,2623.2,2623.0,3.2078]
[1739357330726,0.00571331,2623.2,2623.0,3.7682]
[1739357332326,0.00571331,2623.2,2623.0,3.2078]
[1739357335523,0.00571331,2623.2,2623.1,40.8]
[1739357337920,0.00571331,2623.2,2623.0,3.2078]
[1739357338319,0.00571331,2623.2,2623.0,44.0078]
[1739357340832,0.00571331,2623.2,2623.0,3.2078]
[1739357341535,0.00571331,2623.2,2622.8,40.8]
[1739357341736,3.11717605,2623.0,2622.8,40.8]
[1739357342029,0.5796,2622.9,2622.8,40.8]
[1739357342422,0.5796,2622.9,2622.7,0.00571331]
[1739357342622,0.6088,2622.8,2622.7,0.00571331]
[1739357346931,0.6088,2622.8,2622.7,40.80571331]
[1739357347630,0.5796,2622.9,2622.7,40.80571331]
[1739357347826,0.6035,2623.1,2622.7,40.80571331]
[1739357348126,0.6035,2623.1,2622.7,41.41501331]
[1739357349329,3.71067605,2623.0,2622.7,40.80571331]
[1739357349630,3.71067605,2623.0,2622.7,0.00571331]
[1739357353731,6.91847605,2623.0,2622.7,0.00571331]
[1739357354130,0.35767302,2622.9,2622.7,0.00571331]
[1739357354833,3.11717605,2622.8,2622.7,0.00571331]